[Event "Late-Titled-Tuesday-Blitz-February-27-2024"]
[Site "Chess.com"]
[Date "2024.02.27"]
[Round "7"]
[White "secretsuperstar7"]
[Black "Jahonas"]
[Result "1-0"]
[WhiteElo "2514"]
[BlackElo "2366"]
[TimeControl "180+1"]
[EndTime "15:16:10 PST"]
[Termination "secretsuperstar7 won on time"]

1. c4 {[%clk 0:02:56.9]} 1... Nf6 {[%clk 0:02:59]} 2. Nc3 {[%clk 0:02:56.8]}
2... c6 {[%clk 0:02:53]} 3. e4 {[%clk 0:02:53.1]} 3... d5 {[%clk 0:02:52.8]} 4.
e5 {[%clk 0:02:51.2]} 4... d4 {[%clk 0:02:52.7]} 5. exf6 {[%clk 0:02:50.5]} 5...
dxc3 {[%clk 0:02:52.4]} 6. fxg7 {[%clk 0:02:49]} 6... cxd2+ {[%clk 0:02:52.2]}
7. Bxd2 {[%clk 0:02:47.7]} 7... Bxg7 {[%clk 0:02:52]} 8. Qc2 {[%clk 0:02:37.7]}
8... Qd4 {[%clk 0:02:26.3]} 9. Bc3 {[%clk 0:02:34.5]} 9... Qg4 {[%clk
0:02:24.6]} 10. h3 {[%clk 0:02:21.7]} 10... Qg6 {[%clk 0:02:22.7]} 11. Qxg6
{[%clk 0:02:20.2]} 11... Bxc3+ {[%clk 0:02:21.9]} 12. bxc3 {[%clk 0:02:20.9]}
12... hxg6 {[%clk 0:02:21.4]} 13. Nf3 {[%clk 0:02:18.5]} 13... Nd7 {[%clk
0:02:17]} 14. Bd3 {[%clk 0:02:15.5]} 14... Nc5 {[%clk 0:02:16.3]} 15. Bc2 {[%clk
0:02:15.7]} 15... Be6 {[%clk 0:02:14.7]} 16. O-O {[%clk 0:02:11.9]} 16... Bxc4
{[%clk 0:02:09.4]} 17. Rfe1 {[%clk 0:02:12.2]} 17... e6 {[%clk 0:01:43.6]} 18.
Ne5 {[%clk 0:02:07.4]} 18... Ba6 {[%clk 0:01:28.5]} 19. Rad1 {[%clk 0:02:07]}
19... Ke7 {[%clk 0:01:26.5]} 20. Rd4 {[%clk 0:01:57.5]} 20... Rad8 {[%clk
0:01:12.4]} 21. Rf4 {[%clk 0:01:57.1]} 21... Rhf8 {[%clk 0:01:07.9]} 22. Bxg6
{[%clk 0:01:49.2]} 22... f6 {[%clk 0:00:44.6]} 23. Nf3 {[%clk 0:01:48.7]} 23...
Bd3 {[%clk 0:00:35.1]} 24. Rg4 {[%clk 0:01:26.7]} 24... Rg8 {[%clk 0:00:24.6]}
25. Bxd3 {[%clk 0:01:24.9]} 25... Rxg4 {[%clk 0:00:23.9]} 26. hxg4 {[%clk
0:01:23]} 26... Nxd3 {[%clk 0:00:23.5]} 27. Rb1 {[%clk 0:01:20.3]} 27... Nc5
{[%clk 0:00:19.8]} 28. Nd4 {[%clk 0:01:19.3]} 28... Rd5 {[%clk 0:00:16.2]} 29.
Re1 {[%clk 0:01:11.8]} 29... a5 {[%clk 0:00:14]} 30. f4 {[%clk 0:01:11]} 30...
Kd7 {[%clk 0:00:11.9]} 31. f5 {[%clk 0:01:05.6]} 31... e5 {[%clk 0:00:11.2]} 32.
Nf3 {[%clk 0:01:04.1]} 32... Nd3 {[%clk 0:00:11.3]} 33. Rb1 {[%clk 0:01:02.1]}
33... b5 {[%clk 0:00:10.7]} 34. Nd2 {[%clk 0:00:58.7]} 34... Nf4 {[%clk
0:00:10.2]} 35. Ne4 {[%clk 0:00:58.4]} 35... Ke7 {[%clk 0:00:09.5]} 36. g3
{[%clk 0:00:49.2]} 36... Nd3 {[%clk 0:00:05.1]} 37. g5 {[%clk 0:00:45.2]} 37...
fxg5 {[%clk 0:00:04.8]} 38. f6+ {[%clk 0:00:45.5]} 38... Kf7 {[%clk 0:00:03.3]}
39. Rf1 {[%clk 0:00:45.3]} 39... Rd8 {[%clk 0:00:02.4]} 40. Nxg5+ {[%clk
0:00:44.4]} 40... Kg6 {[%clk 0:00:02.3]} 41. Ne6 {[%clk 0:00:42.2]} 1-0

[Event "Late-Titled-Tuesday-Blitz-February-27-2024"]
[Site "Chess.com"]
[Date "2024.02.27"]
[Round "7"]
[White "TigrVShlyape"]
[Black "wild3000"]
[Result "1-0"]
[WhiteElo "2911"]
[BlackElo "2498"]
[TimeControl "180+1"]
[EndTime "15:16:11 PST"]
[Termination "TigrVShlyape won on time"]

1. d4 {[%clk 0:03:00.9]} 1... d5 {[%clk 0:02:58.3]} 2. Bf4 {[%clk 0:03:00.1]}
2... Nf6 {[%clk 0:02:54.5]} 3. e3 {[%clk 0:03:00.4]} 3... c6 {[%clk 0:02:51.3]}
4. c4 {[%clk 0:02:59.9]} 4... g6 {[%clk 0:02:46]} 5. Nc3 {[%clk 0:02:59.9]} 5...
Bg7 {[%clk 0:02:45.8]} 6. Nf3 {[%clk 0:02:56.4]} 6... O-O {[%clk 0:02:39.4]} 7.
h3 {[%clk 0:02:56.2]} 7... dxc4 {[%clk 0:02:28.1]} 8. Bxc4 {[%clk 0:02:55.2]}
8... Nbd7 {[%clk 0:02:28.7]} 9. O-O {[%clk 0:02:51.3]} 9... Nb6 {[%clk
0:02:24.4]} 10. Bb3 {[%clk 0:02:47.7]} 10... Nbd5 {[%clk 0:02:12]} 11. Be5
{[%clk 0:02:39.1]} 11... Bf5 {[%clk 0:01:54]} 12. Rc1 {[%clk 0:02:36.4]} 12...
Nxc3 {[%clk 0:01:52.8]} 13. Rxc3 {[%clk 0:02:35.3]} 13... Ne4 {[%clk 0:01:46.5]}
14. Rc1 {[%clk 0:02:34.5]} 14... Nd6 {[%clk 0:01:38]} 15. Bxg7 {[%clk 0:02:21]}
15... Kxg7 {[%clk 0:01:37.8]} 16. Qe2 {[%clk 0:02:17.8]} 16... Be4 {[%clk
0:01:29.2]} 17. Ne5 {[%clk 0:02:13.4]} 17... Bd5 {[%clk 0:01:19.4]} 18. Bc2
{[%clk 0:02:13]} 18... f6 {[%clk 0:01:13.7]} 19. Nd3 {[%clk 0:02:12.5]} 19...
Bc4 {[%clk 0:01:01.2]} 20. Bb3 {[%clk 0:02:08.9]} 20... Bxd3 {[%clk 0:00:43.3]}
21. Qxd3 {[%clk 0:02:08.5]} 21... Qb6 {[%clk 0:00:28.4]} 22. Rfd1 {[%clk
0:02:02.8]} 22... Rad8 {[%clk 0:00:28.1]} 23. Qc3 {[%clk 0:01:57.8]} 23... Ne4
{[%clk 0:00:22.1]} 24. Qc2 {[%clk 0:01:56.5]} 24... Nd6 {[%clk 0:00:20.8]} 25.
Be6 {[%clk 0:01:51.1]} 25... Ne8 {[%clk 0:00:19.4]} 26. a3 {[%clk 0:01:41]}
26... Nc7 {[%clk 0:00:18.9]} 27. Ba2 {[%clk 0:01:40.6]} 27... Nd5 {[%clk
0:00:18.5]} 28. g3 {[%clk 0:01:39.3]} 28... h5 {[%clk 0:00:18.3]} 29. e4 {[%clk
0:01:37.4]} 29... Nc7 {[%clk 0:00:17.4]} 30. d5 {[%clk 0:01:37.9]} 30... Rd6
{[%clk 0:00:11.2]} 31. h4 {[%clk 0:01:21.8]} 31... Rfd8 {[%clk 0:00:10.3]} 32.
Rd3 {[%clk 0:01:18.3]} 32... Na6 {[%clk 0:00:09.9]} 33. e5 {[%clk 0:01:10.3]}
33... Rxd5 {[%clk 0:00:07.6]} 34. Bxd5 {[%clk 0:01:09.1]} 34... cxd5 {[%clk
0:00:08]} 35. exf6+ {[%clk 0:01:08.2]} 35... exf6 {[%clk 0:00:06.5]} 36. Qe2
{[%clk 0:01:05.9]} 36... Qd6 {[%clk 0:00:05.6]} 37. Re3 {[%clk 0:01:01.7]} 37...
Nc5 {[%clk 0:00:05]} 38. Re7+ {[%clk 0:00:59]} 38... Kf8 {[%clk 0:00:05.2]} 39.
b4 {[%clk 0:00:58.4]} 39... Nd7 {[%clk 0:00:04.6]} 40. Re6 {[%clk 0:00:57.4]}
40... Qb8 {[%clk 0:00:03.5]} 41. Qf3 {[%clk 0:00:54.3]} 41... Kf7 {[%clk
0:00:03.1]} 42. Qxd5 {[%clk 0:00:53.7]} 42... Ne5 {[%clk 0:00:02.1]} 43. Rd6+
{[%clk 0:00:53.8]} 1-0

[Event "Late-Titled-Tuesday-Blitz-February-27-2024"]
[Site "Chess.com"]
[Date "2024.02.27"]
[Round "7"]
[White "ElHelvetico"]
[Black "tteshan"]
[Result "1/2-1/2"]
[WhiteElo "2737"]
[BlackElo "2602"]
[TimeControl "180+1"]
[EndTime "15:16:12 PST"]
[Termination "Game drawn by repetition"]

1. c4 {[%clk 0:03:00.9]} 1... c6 {[%clk 0:02:59.4]} 2. Nf3 {[%clk 0:03:00.3]}
2... Nf6 {[%clk 0:02:59.1]} 3. b3 {[%clk 0:02:59.6]} 3... d5 {[%clk 0:02:58.7]}
4. Bb2 {[%clk 0:03:00.2]} 4... g6 {[%clk 0:02:51.3]} 5. g3 {[%clk 0:02:56.2]}
5... Bg7 {[%clk 0:02:49.9]} 6. Bg2 {[%clk 0:02:56.6]} 6... O-O {[%clk
0:02:50.4]} 7. O-O {[%clk 0:02:56.2]} 7... Re8 {[%clk 0:02:42.7]} 8. d4 {[%clk
0:02:46]} 8... Nbd7 {[%clk 0:02:37]} 9. Nbd2 {[%clk 0:02:43.6]} 9... Nf8 {[%clk
0:02:34.7]} 10. Ne5 {[%clk 0:02:41.6]} 10... Bf5 {[%clk 0:02:30.9]} 11. Rc1
{[%clk 0:02:30.5]} 11... h5 {[%clk 0:02:28.4]} 12. e3 {[%clk 0:02:21.7]} 12...
N8d7 {[%clk 0:02:24.7]} 13. Nxd7 {[%clk 0:02:12.3]} 13... Qxd7 {[%clk
0:02:23.2]} 14. Qe2 {[%clk 0:02:12.2]} 14... Rac8 {[%clk 0:02:14.9]} 15. Nf3
{[%clk 0:01:59.6]} 15... Ne4 {[%clk 0:02:04.5]} 16. Ne5 {[%clk 0:01:59.7]} 16...
Qd6 {[%clk 0:01:55.8]} 17. f3 {[%clk 0:01:51]} 17... Nf6 {[%clk 0:01:54.5]} 18.
e4 {[%clk 0:01:46.1]} 18... dxe4 {[%clk 0:01:51.8]} 19. fxe4 {[%clk 0:01:47]}
19... Bg4 {[%clk 0:01:47.6]} 20. Qf2 {[%clk 0:01:44.6]} 20... Qe6 {[%clk
0:01:38.1]} 21. d5 {[%clk 0:01:39.4]} 21... cxd5 {[%clk 0:01:31.4]} 22. cxd5
{[%clk 0:01:06.7]} 22... Qa6 {[%clk 0:01:25.6]} 23. Nxg4 {[%clk 0:01:06.8]}
23... hxg4 {[%clk 0:01:18.4]} 24. Rxc8 {[%clk 0:01:06.7]} 24... Rxc8 {[%clk
0:01:17.5]} 25. e5 {[%clk 0:01:07.4]} 25... Nh5 {[%clk 0:01:02.6]} 26. Qxf7+
{[%clk 0:01:07.4]} 26... Kh7 {[%clk 0:01:03.1]} 27. Be4 {[%clk 0:00:55.1]} 27...
Qb6+ {[%clk 0:00:58.5]} 28. Kg2 {[%clk 0:00:43.6]} 28... Rf8 {[%clk 0:00:50]}
29. Qxe7 {[%clk 0:00:31]} 29... Rxf1 {[%clk 0:00:48.6]} 30. Kxf1 {[%clk
0:00:31.9]} 30... Qa6+ {[%clk 0:00:45.9]} 31. Kg1 {[%clk 0:00:21.1]} 31... Qe2
{[%clk 0:00:39.3]} 32. Bxg6+ {[%clk 0:00:15.8]} 32... Kxg6 {[%clk 0:00:38.9]}
33. Qe6+ {[%clk 0:00:16.7]} 33... Kh7 {[%clk 0:00:36.3]} 34. Qf5+ {[%clk
0:00:17.4]} 34... Kg8 {[%clk 0:00:32.7]} 35. Qe6+ {[%clk 0:00:13.5]} 35... Kh7
{[%clk 0:00:32.2]} 36. Qf5+ {[%clk 0:00:13.6]} 36... Kg8 {[%clk 0:00:32.4]} 37.
Qe6+ {[%clk 0:00:08.9]} 37... Kh7 {[%clk 0:00:32.2]} 1/2-1/2

[Event "Late-Titled-Tuesday-Blitz-February-27-2024"]
[Site "Chess.com"]
[Date "2024.02.27"]
[Round "7"]
[White "Mikhail646464"]
[Black "morte-negra"]
[Result "0-1"]
[WhiteElo "2350"]
[BlackElo "2061"]
[TimeControl "180+1"]
[EndTime "15:16:17 PST"]
[Termination "morte-negra won on time"]

1. c4 {[%clk 0:02:48.3]} 1... Nf6 {[%clk 0:02:56.5]} 2. Nc3 {[%clk 0:02:47.4]}
2... g6 {[%clk 0:02:55.2]} 3. e4 {[%clk 0:02:46.2]} 3... d6 {[%clk 0:02:53.1]}
4. d4 {[%clk 0:02:46.5]} 4... Bg7 {[%clk 0:02:53.2]} 5. Be2 {[%clk 0:02:47]}
5... O-O {[%clk 0:02:51.1]} 6. h4 {[%clk 0:02:44.9]} 6... e5 {[%clk 0:02:36.6]}
7. d5 {[%clk 0:02:38]} 7... Na6 {[%clk 0:02:26.4]} 8. h5 {[%clk 0:02:24.3]} 8...
Nc5 {[%clk 0:02:24.1]} 9. Qc2 {[%clk 0:02:12.6]} 9... c6 {[%clk 0:02:03.8]} 10.
Bg5 {[%clk 0:01:55.5]} 10... cxd5 {[%clk 0:02:01.7]} 11. cxd5 {[%clk 0:01:55]}
11... Qa5 {[%clk 0:01:56.2]} 12. Kf1 {[%clk 0:01:38.2]} 12... b5 {[%clk
0:01:14.2]} 13. h6 {[%clk 0:01:08]} 13... Bh8 {[%clk 0:01:10.1]} 14. f3 {[%clk
0:01:06.1]} 14... b4 {[%clk 0:01:08.8]} 15. Nd1 {[%clk 0:01:04.3]} 15... Ba6
{[%clk 0:01:06.6]} 16. Nf2 {[%clk 0:00:57.7]} 16... Rac8 {[%clk 0:01:04.9]} 17.
Qd1 {[%clk 0:00:52]} 17... Nh5 {[%clk 0:00:54.1]} 18. Rh3 {[%clk 0:00:49.3]}
18... f5 {[%clk 0:00:45.4]} 19. Rxh5 {[%clk 0:00:38.7]} 19... gxh5 {[%clk
0:00:44.3]} 20. Be7 {[%clk 0:00:21.9]} 20... fxe4 {[%clk 0:00:44.1]} 21. Bxf8
{[%clk 0:00:20.5]} 21... Rxf8 {[%clk 0:00:43.2]} 22. Qd2 {[%clk 0:00:17.5]}
22... Bf6 {[%clk 0:00:30]} 23. Rc1 {[%clk 0:00:11.3]} 23... Kh8 {[%clk
0:00:28.5]} 24. Qe3 {[%clk 0:00:06.7]} 24... Qd8 {[%clk 0:00:20.4]} 25. Ngh3
{[%clk 0:00:05.7]} 25... Rg8 {[%clk 0:00:17.6]} 26. Bxa6 {[%clk 0:00:04.6]}
26... Nxa6 {[%clk 0:00:16.5]} 27. Nxe4 {[%clk 0:00:04.2]} 27... Bh4 {[%clk
0:00:14]} 28. Qxa7 {[%clk 0:00:03.1]} 28... Nb8 {[%clk 0:00:10.6]} 0-1

[Event "Late-Titled-Tuesday-Blitz-February-27-2024"]
[Site "Chess.com"]
[Date "2024.02.27"]
[Round "7"]
[White "protectiago"]
[Black "lluiss"]
[Result "0-1"]
[WhiteElo "2069"]
[BlackElo "2137"]
[TimeControl "180+1"]
[EndTime "15:16:17 PST"]
[Termination "lluiss won by resignation"]

1. d4 {[%clk 0:03:00]} 1... d5 {[%clk 0:02:57.6]} 2. c4 {[%clk 0:03:00]} 2... c6
{[%clk 0:02:52]} 3. Nf3 {[%clk 0:02:59.5]} 3... e6 {[%clk 0:02:51.2]} 4. g3
{[%clk 0:02:59.6]} 4... f5 {[%clk 0:02:50.8]} 5. Bg2 {[%clk 0:02:57.4]} 5... Nf6
{[%clk 0:02:51.3]} 6. O-O {[%clk 0:02:57.9]} 6... Be7 {[%clk 0:02:51]} 7. b3
{[%clk 0:02:58.4]} 7... O-O {[%clk 0:02:50.5]} 8. Ba3 {[%clk 0:02:58]} 8... Bxa3
{[%clk 0:02:49]} 9. Nxa3 {[%clk 0:02:58.5]} 9... Qd6 {[%clk 0:02:46.5]} 10. Nc2
{[%clk 0:02:58.5]} 10... Bd7 {[%clk 0:02:46]} 11. Nce1 {[%clk 0:02:58.6]} 11...
Be8 {[%clk 0:02:43.4]} 12. Nd3 {[%clk 0:02:59.1]} 12... Bh5 {[%clk 0:02:43]} 13.
Nde5 {[%clk 0:02:39.4]} 13... Bxf3 {[%clk 0:02:41]} 14. Nxf3 {[%clk 0:02:24.8]}
14... Nbd7 {[%clk 0:02:40.6]} 15. Rc1 {[%clk 0:02:24.8]} 15... Rad8 {[%clk
0:02:27.8]} 16. Qd3 {[%clk 0:02:18.2]} 16... Ne4 {[%clk 0:02:24.3]} 17. Nd2
{[%clk 0:02:15.7]} 17... e5 {[%clk 0:02:22.4]} 18. f3 {[%clk 0:02:12.2]} 18...
Nxd2 {[%clk 0:02:19.1]} 19. Qxd2 {[%clk 0:02:10.7]} 19... e4 {[%clk 0:02:19.3]}
20. c5 {[%clk 0:01:54.4]} 20... Qe6 {[%clk 0:02:16.1]} 21. e3 {[%clk 0:01:53]}
21... exf3 {[%clk 0:02:04.5]} 22. Rxf3 {[%clk 0:01:53]} 22... g6 {[%clk
0:02:04.7]} 23. Rcf1 {[%clk 0:01:53]} 23... Rde8 {[%clk 0:02:04.9]} 24. b4
{[%clk 0:01:45.9]} 24... a6 {[%clk 0:02:02.4]} 25. a4 {[%clk 0:01:45.6]} 25...
Nf6 {[%clk 0:02:02.7]} 26. Qd3 {[%clk 0:01:35]} 26... Ng4 {[%clk 0:02:01.8]} 27.
Re1 {[%clk 0:01:30]} 27... Re7 {[%clk 0:01:47.1]} 28. h3 {[%clk 0:01:22.2]}
28... Nf6 {[%clk 0:01:45.8]} 29. b5 {[%clk 0:01:20.1]} 29... axb5 {[%clk
0:01:44.7]} 30. axb5 {[%clk 0:01:20.1]} 30... Rfe8 {[%clk 0:01:39.8]} 31. bxc6
{[%clk 0:01:16.1]} 31... bxc6 {[%clk 0:01:39.8]} 32. Qa6 {[%clk 0:01:13]} 32...
Ne4 {[%clk 0:01:28.5]} 33. Kh2 {[%clk 0:01:02.1]} 33... h5 {[%clk 0:01:18.9]}
34. Bf1 {[%clk 0:00:57.5]} 34... Qf6 {[%clk 0:01:18.2]} 35. Bd3 {[%clk
0:00:54.3]} 35... h4 {[%clk 0:01:15.7]} 36. Bxe4 {[%clk 0:00:53.9]} 36... Rxe4
{[%clk 0:01:10.1]} 37. gxh4 {[%clk 0:00:33.8]} 37... Rxd4 {[%clk 0:01:04.1]} 38.
exd4 {[%clk 0:00:22.6]} 38... Rxe1 {[%clk 0:01:03.4]} 39. Qc8+ {[%clk
0:00:22.1]} 39... Kg7 {[%clk 0:01:00.3]} 40. Qc7+ {[%clk 0:00:19.5]} 40... Re7
{[%clk 0:00:55.3]} 41. Qg3 {[%clk 0:00:17.2]} 41... Qxd4 {[%clk 0:00:49.2]} 42.
h5 {[%clk 0:00:17.5]} 42... Re2+ {[%clk 0:00:46.9]} 43. Kh1 {[%clk 0:00:08]}
43... Qd1+ {[%clk 0:00:45.1]} 44. Qg1 {[%clk 0:00:08.1]} 44... Re1 {[%clk
0:00:45.2]} 45. Rf1 {[%clk 0:00:08.3]} 45... Rxf1 {[%clk 0:00:44.6]} 0-1

[Event "Late-Titled-Tuesday-Blitz-February-27-2024"]
[Site "Chess.com"]
[Date "2024.02.27"]
[Round "7"]
[White "db-banana"]
[Black "Roedor"]
[Result "1/2-1/2"]
[WhiteElo "2478"]
[BlackElo "2303"]
[TimeControl "180+1"]
[EndTime "15:16:18 PST"]
[Termination "Game drawn by repetition"]

1. e4 {[%clk 0:03:00.9]} 1... e5 {[%clk 0:02:57.5]} 2. Nf3 {[%clk 0:03:00.4]}
2... Nc6 {[%clk 0:02:54.1]} 3. Bc4 {[%clk 0:03:00.7]} 3... Bc5 {[%clk 0:02:53]}
4. c3 {[%clk 0:03:00.1]} 4... Nf6 {[%clk 0:02:53.1]} 5. d3 {[%clk 0:03:00.6]}
5... d6 {[%clk 0:02:50.3]} 6. Nbd2 {[%clk 0:03:00.7]} 6... a5 {[%clk 0:02:50.5]}
7. Bb3 {[%clk 0:03:01.1]} 7... Ba7 {[%clk 0:02:50.7]} 8. O-O {[%clk 0:03:00.9]}
8... O-O {[%clk 0:02:47.1]} 9. h3 {[%clk 0:03:01.4]} 9... Be6 {[%clk 0:02:46.7]}
10. Bc2 {[%clk 0:03:01.1]} 10... Ne7 {[%clk 0:02:46.8]} 11. Re1 {[%clk
0:03:01.6]} 11... Ng6 {[%clk 0:02:46.8]} 12. Nf1 {[%clk 0:03:02]} 12... h6
{[%clk 0:02:45.2]} 13. d4 {[%clk 0:03:02.6]} 13... c6 {[%clk 0:02:43.4]} 14. Be3
{[%clk 0:03:01.2]} 14... Qc7 {[%clk 0:02:43]} 15. Ng3 {[%clk 0:03:00.9]} 15...
Rad8 {[%clk 0:02:38.8]} 16. Qc1 {[%clk 0:02:51.7]} 16... exd4 {[%clk 0:02:34.8]}
17. cxd4 {[%clk 0:02:51.3]} 17... Rfe8 {[%clk 0:02:32.1]} 18. Nf5 {[%clk
0:02:02.2]} 18... Bxf5 {[%clk 0:02:21.5]} 19. exf5 {[%clk 0:02:03.1]} 19... Nf8
{[%clk 0:02:20.5]} 20. Bb3 {[%clk 0:01:42.9]} 20... d5 {[%clk 0:02:19.1]} 21.
Ne5 {[%clk 0:01:41.2]} 21... Ne4 {[%clk 0:02:15.1]} 22. Qd1 {[%clk 0:01:31.5]}
22... Nh7 {[%clk 0:01:59.9]} 23. Bf4 {[%clk 0:01:13.1]} 23... Nhf6 {[%clk
0:01:56.5]} 24. f3 {[%clk 0:00:59.1]} 24... Rxe5 {[%clk 0:01:53.8]} 25. fxe4
{[%clk 0:00:47.2]} 25... dxe4 {[%clk 0:01:46.4]} 26. Kh1 {[%clk 0:00:39.5]}
26... Rxd4 {[%clk 0:01:46.2]} 27. Bxe5 {[%clk 0:00:37.8]} 27... Qxe5 {[%clk
0:01:47.1]} 28. Qe2 {[%clk 0:00:34]} 28... a4 {[%clk 0:01:37.7]} 29. Bc2 {[%clk
0:00:33.9]} 29... Qxf5 {[%clk 0:01:26.7]} 30. Rad1 {[%clk 0:00:31.3]} 30... Nh5
{[%clk 0:00:59.4]} 31. Qg4 {[%clk 0:00:14.3]} 31... Rxd1 {[%clk 0:00:41.9]} 32.
Rxd1 {[%clk 0:00:08.6]} 32... Qe5 {[%clk 0:00:31.6]} 33. Rd8+ {[%clk 0:00:07.9]}
33... Kh7 {[%clk 0:00:32]} 34. Qxe4+ {[%clk 0:00:07.8]} 34... Qxe4 {[%clk
0:00:27.5]} 35. Bxe4+ {[%clk 0:00:08.7]} 35... g6 {[%clk 0:00:28.4]} 36. Bf3
{[%clk 0:00:08.7]} 36... Ng3+ {[%clk 0:00:25]} 37. Kh2 {[%clk 0:00:08.4]} 37...
Nf1+ {[%clk 0:00:25.5]} 38. Kh1 {[%clk 0:00:06.9]} 38... Ng3+ {[%clk 0:00:26.4]}
39. Kh2 {[%clk 0:00:07.8]} 39... Nf1+ {[%clk 0:00:26.6]} 40. Kh1 {[%clk
0:00:08.7]} 40... Ng3+ {[%clk 0:00:26.8]} 1/2-1/2

[Event "Late-Titled-Tuesday-Blitz-February-27-2024"]
[Site "Chess.com"]
[Date "2024.02.27"]
[Round "7"]
[White "rcmz"]
[Black "Sjakkerntobi"]
[Result "0-1"]
[WhiteElo "2214"]
[BlackElo "2460"]
[TimeControl "180+1"]
[EndTime "15:16:19 PST"]
[Termination "Sjakkerntobi won on time"]

1. b4 {[%clk 0:03:00.9]} 1... c6 {[%clk 0:02:56.1]} 2. Bb2 {[%clk 0:03:00]} 2...
Qb6 {[%clk 0:02:56.2]} 3. a3 {[%clk 0:02:59.1]} 3... a5 {[%clk 0:02:56.5]} 4. c4
{[%clk 0:02:59.4]} 4... axb4 {[%clk 0:02:54.8]} 5. c5 {[%clk 0:02:59.1]} 5...
Qc7 {[%clk 0:02:35.7]} 6. axb4 {[%clk 0:02:59.6]} 6... Rxa1 {[%clk 0:02:36.6]}
7. Bxa1 {[%clk 0:02:59.6]} 7... Nf6 {[%clk 0:02:37.2]} 8. Nc3 {[%clk 0:02:53]}
8... d5 {[%clk 0:02:37.3]} 9. d4 {[%clk 0:02:51.8]} 9... Nbd7 {[%clk 0:02:33.5]}
10. Nf3 {[%clk 0:02:49.6]} 10... g6 {[%clk 0:02:25.6]} 11. e3 {[%clk 0:02:45.6]}
11... Bg7 {[%clk 0:02:25]} 12. Bd3 {[%clk 0:02:44.8]} 12... O-O {[%clk
0:02:25.2]} 13. O-O {[%clk 0:02:44.4]} 13... e5 {[%clk 0:02:21.9]} 14. dxe5
{[%clk 0:02:42.9]} 14... Nxe5 {[%clk 0:02:22.8]} 15. Nxe5 {[%clk 0:02:42.5]}
15... Qxe5 {[%clk 0:02:22.9]} 16. Nb5 {[%clk 0:02:39.7]} 16... Qg5 {[%clk
0:02:22.7]} 17. f4 {[%clk 0:02:30.1]} 17... Qh4 {[%clk 0:02:19.7]} 18. Bxf6
{[%clk 0:02:19]} 18... Bxf6 {[%clk 0:02:18]} 19. Nd6 {[%clk 0:02:18.8]} 19...
Bc3 {[%clk 0:01:51.9]} 20. Qb3 {[%clk 0:02:10.6]} 20... Bd2 {[%clk 0:01:47.7]}
21. Bb1 {[%clk 0:01:42.4]} 21... Qe7 {[%clk 0:01:40.6]} 22. Rf3 {[%clk
0:01:33.5]} 22... d4 {[%clk 0:01:38.7]} 23. e4 {[%clk 0:01:26.3]} 23... Be3+
{[%clk 0:01:35.5]} 24. Rxe3 {[%clk 0:01:22.3]} 24... dxe3 {[%clk 0:01:35.6]} 25.
Qxe3 {[%clk 0:01:22.3]} 25... Be6 {[%clk 0:01:27.8]} 26. Qc3 {[%clk 0:01:05.6]}
26... Qh4 {[%clk 0:01:22.3]} 27. g3 {[%clk 0:01:04.8]} 27... Qg4 {[%clk
0:01:20]} 28. Kf2 {[%clk 0:00:43.8]} 28... Qd1 {[%clk 0:01:15.9]} 29. Bc2 {[%clk
0:00:43]} 29... Qh1 {[%clk 0:01:15.6]} 30. h4 {[%clk 0:00:36.3]} 30... Qh2+
{[%clk 0:00:58.5]} 31. Ke1 {[%clk 0:00:34.6]} 31... Bg4 {[%clk 0:00:56.9]} 32.
Bd3 {[%clk 0:00:27.5]} 32... Qxg3+ {[%clk 0:00:54.8]} 33. Kd2 {[%clk 0:00:25.3]}
33... Qxf4+ {[%clk 0:00:55.1]} 34. Kc2 {[%clk 0:00:25]} 34... Qf2+ {[%clk
0:00:54.2]} 35. Kb1 {[%clk 0:00:22.3]} 35... Be2 {[%clk 0:00:48.9]} 36. Bc2
{[%clk 0:00:14.8]} 36... Qf1+ {[%clk 0:00:44.4]} 37. Kb2 {[%clk 0:00:14]} 37...
Ra8 {[%clk 0:00:44.7]} 38. Bb1 {[%clk 0:00:10.7]} 38... Bg4 {[%clk 0:00:34.7]}
39. e5 {[%clk 0:00:03.8]} 39... Qe2+ {[%clk 0:00:31]} 0-1

[Event "Late-Titled-Tuesday-Blitz-February-27-2024"]
[Site "Chess.com"]
[Date "2024.02.27"]
[Round "7"]
[White "mishanick"]
[Black "Goryachkina"]
[Result "1-0"]
[WhiteElo "3059"]
[BlackElo "2690"]
[TimeControl "180+1"]
[EndTime "15:16:24 PST"]
[Termination "mishanick won on time"]

1. d4 {[%clk 0:03:00.3]} 1... Nf6 {[%clk 0:02:59.4]} 2. c4 {[%clk 0:03:01.2]}
2... e6 {[%clk 0:02:59.5]} 3. Nc3 {[%clk 0:03:02]} 3... Bb4 {[%clk 0:02:58.1]}
4. e3 {[%clk 0:03:02.2]} 4... O-O {[%clk 0:02:51.2]} 5. Bd3 {[%clk 0:03:02.9]}
5... d5 {[%clk 0:02:50.9]} 6. a3 {[%clk 0:03:03.3]} 6... Bd6 {[%clk 0:02:38.1]}
7. Nf3 {[%clk 0:03:01]} 7... Nbd7 {[%clk 0:02:35.4]} 8. c5 {[%clk 0:02:55.4]}
8... Be7 {[%clk 0:02:35.3]} 9. b4 {[%clk 0:02:55.8]} 9... c6 {[%clk 0:02:31.7]}
10. O-O {[%clk 0:02:55]} 10... b6 {[%clk 0:02:22.4]} 11. Qc2 {[%clk 0:02:47.6]}
11... h6 {[%clk 0:02:19.8]} 12. e4 {[%clk 0:02:35.9]} 12... dxe4 {[%clk
0:02:09.2]} 13. Nxe4 {[%clk 0:02:35.8]} 13... Nxe4 {[%clk 0:01:57.4]} 14. Bxe4
{[%clk 0:02:35.9]} 14... Ba6 {[%clk 0:01:55.1]} 15. Re1 {[%clk 0:02:33.2]} 15...
Rc8 {[%clk 0:01:47.6]} 16. Bf4 {[%clk 0:02:33.1]} 16... Nf6 {[%clk 0:01:43]} 17.
Qa4 {[%clk 0:02:18.7]} 17... Nxe4 {[%clk 0:01:13]} 18. Qxa6 {[%clk 0:02:16.7]}
18... Nc3 {[%clk 0:01:07.1]} 19. Qxa7 {[%clk 0:02:11.6]} 19... Nd5 {[%clk
0:00:56.8]} 20. Bg3 {[%clk 0:02:09.2]} 20... b5 {[%clk 0:00:44.5]} 21. Ne5
{[%clk 0:01:48.6]} 21... Bf6 {[%clk 0:00:43]} 22. Nd7 {[%clk 0:01:49]} 22... Re8
{[%clk 0:00:29.2]} 23. Nb6 {[%clk 0:01:48.8]} 23... Bxd4 {[%clk 0:00:20.5]} 24.
Rad1 {[%clk 0:01:47.9]} 24... Nxb6 {[%clk 0:00:18.1]} 25. Rxd4 {[%clk
0:00:41.3]} 25... Qxd4 {[%clk 0:00:17.8]} 26. cxb6 {[%clk 0:00:42]} 26... e5
{[%clk 0:00:17.2]} 27. h3 {[%clk 0:00:33.3]} 27... Ra8 {[%clk 0:00:16.6]} 28.
Qc7 {[%clk 0:00:29.2]} 28... Rac8 {[%clk 0:00:16.3]} 29. Rxe5 {[%clk 0:00:28.1]}
29... Kh7 {[%clk 0:00:04]} 30. Rxe8 {[%clk 0:00:22.3]} 30... Rxe8 {[%clk
0:00:04.1]} 31. b7 {[%clk 0:00:21.9]} 31... Re1+ {[%clk 0:00:02.7]} 32. Kh2
{[%clk 0:00:22.6]} 32... Qa1 {[%clk 0:00:01.4]} 33. Bf4 {[%clk 0:00:22.5]} 33...
Rh1+ {[%clk 0:00:01.3]} 34. Kg3 {[%clk 0:00:22.8]} 34... Qxa3+ {[%clk
0:00:01.5]} 35. Be3 {[%clk 0:00:22.7]} 1-0